[Event "17th Memorial Lezcano Montalvo 2025"]
[Site "Gran Canaria"]
[Date "2025.04.19"]
[Round "8.55"]
[White "Rodriguez Trujillo, Cristian"]
[Black "Martinez Correa, Rafael"]
[Result "0-1"]
[Annotator "NA RC"]
[ECO "B22"]
[WhiteElo "1562"]
[BlackElo "1719"]
[PlyCount "118"]
[EventDate "2025.04.13"]
[EventType "swiss"]
[EventCountry "ESP"]
[SourceTitle "playchess.com"]
[Source "ChessBase"]
[SourceQuality "1"]
[TimeControl "5400+30"]

1. e4 {[%emt 0:00:05]} c5 {[%emt 0:00:08]} 2. Nf3 {[%emt 0:00:06]} Nc6 {[%emt 0:00:08]} 3. c3 {[%emt 0:00:55]} d5 {[%emt 0:00:08]} 4. exd5 {[%emt 0:00:21]} Qxd5 {[%emt 0:00:07]} 5. d4 {[%emt 0:00:08]} Bf5 {[%emt 0:00:07]} 6. Na3 {[%emt 0:00:37]} e6 {[%emt 0:03:01]} 7. Nb5 {[%emt 0:10:46]} Rc8 {[%emt 0:05:41]} 8. Be3 {[%emt 0:02:00]} a6 {[%emt 0:03:12]} 9. c4 {[%emt 0:02:19]} Qd7 {[%emt 0:04:18]} 10. Nc3 {[%emt 0:01:29]} cxd4 {[%emt 0:00:43]} 11. Nxd4 {[%emt 0:03:48]} Bg6 {[%emt 0:01:22]} 12. Nxc6 {[%emt 0:02:52]} Qxc6 {[%emt 0:00:36]} 13. Qa4 {[%emt 0:00:26]} Nf6 {[%emt 0:02:58]} 14. Qxc6+ {[%emt 0:04:17]} Rxc6 {[%emt 0:00:09]} 15. Rd1 {[%emt 0:00:08]} Bb4 {[%emt 0:01:24]} 16. Bd4 {[%emt 0:05:05]} Ke7 {[%emt 0:04:21]} 17. a3 {[%emt 0:00:55]} Bc5 {[%emt 0:03:41]} 18. Bxc5+ {[%emt 0:04:34]} Rxc5 {[%emt 0:00:03]} 19. b4 {[%emt 0:00:10]} Rc7 {[%emt 0:01:11]} 20. c5 {[%emt 0:07:16]} Rb8 {[%emt 0:10:38]} 21. Rc1 {[%emt 0:08:11]} Rd8 {[%emt 0:06:21]} 22. Be2 {[%emt 0:03:00]} Nd5 {[%emt 0:02:24]} 23. Nxd5+ {[%emt 0:02:25]} Rxd5 {[%emt 0:00:30]} 24. O-O {[%emt 0:00:14]} Bd3 {[%emt 0:01:08]} 25. Bf3 {[%emt 0:06:12]} Bxf1 {[%emt 0:00:39]} 26. Bxd5 {[%emt 0:00:06]} Bb5 {[%emt 0:09:15]} 27. Bc4 {[%emt 0:07:20]} Bxc4 {[%emt 0:00:41]} 28. Rxc4 {[%emt 0:00:02]} b6 {[%emt 0:01:42]} 29. Kf1 {[%emt 0:00:16]} bxc5 {[%emt 0:00:07]} 30. Ke2 {[%emt 0:00:34]} Kd6 {[%emt 0:00:22]} 31. Kd3 {[%emt 0:01:05]} cxb4 {[%emt 0:00:37]} 32. Rd4+ {[%emt 0:01:12]} Kc6 {[%emt 0:00:47]} 33. Rxb4 {[%emt 0:00:01]} Rd7+ {[%emt 0:00:15]} 34. Kc2 {[%emt 0:03:00]} Rd5 {[%emt 0:00:18]} 35. a4 {[%emt 0:06:00]} Rc5+ {[%emt 0:03:04]} 36. Kd2 {[%emt 0:02:13]} Rd5+ {[%emt 0:02:10]} 37. Ke3 {[%emt 0:02:24]} Rd1 {[%emt 0:02:06]} 38. a5 {[%emt 0:00:36]} Rd6 {[%emt 0:00:55]} 39. Rb8 {[%emt 0:04:21]} Kc7 {[%emt 0:00:42]} 40. Rf8 {[%emt 0:00:22]} Rd7 {[%emt 0:00:29]} 41. Rh8 {[%emt 0:00:25]} h6 {[%emt 0:00:24]} 42. Rg8 {[%emt 0:02:30]} f6 {[%emt 0:02:28]} 43. Re8 {[%emt 0:00:29]} e5 {[%emt 0:01:28]} 44. Re6 {[%emt 0:00:53]} Rd6 {[%emt 0:00:32]} 45. Re7+ {[%emt 0:00:02]} Kc6 {[%emt 0:00:08]} 46. Rxg7 {[%emt 0:00:29]} Kb5 {[%emt 0:00:06]} 47. Rg6 {[%emt 0:00:30]} Kxa5 {[%emt 0:00:19]} 48. Rxh6 {[%emt 0:00:02]} Kb5 {[%emt 0:01:43]} 49. Rh8 {[%emt 0:00:39]} a5 {[%emt 0:00:51]} 50. h4 {[%emt 0:00:20]} a4 {[%emt 0:02:07]} 51. h5 {[%emt 0:00:22]} a3 {[%emt 0:00:28]} 52. h6 {[%emt 0:03:07]} a2 {[%emt 0:00:44]} 53. h7 {[%emt 0:00:19]} a1=Q {[%emt 0:27:14]} 54. Rb8+ {[%emt 0:00:07]} Kc4 {[%emt 0:00:00]} 55. Rc8+ {[%emt 0:00:49]} Kb3 {[%emt 0:00:00]} 56. h8=Q {[%emt 0:01:01]} Qd4+ {[%emt 0:00:00]} 57. Kf3 {[%emt 0:01:48]} Qf4+ {[%emt 0:00:00]} 58. Ke2 {[%emt 0:01:07]} Rd2+ {[%emt 0:00:00]} 59. Ke1 {[%emt 0:00:09]} Qxf2# {[%emt 0:00:00]} 0-1

[Event "17th Memorial Lezcano Montalvo 2025"]
[Site "Gran Canaria"]
[Date "2025.04.19"]
[Round "8.55"]
[White "Mykhyeyeva, Maria"]
[Black "Peraza Concepcion, Airam"]
[Result "*"]
[Annotator "NA"]
[ECO "B22"]
[WhiteElo "1478"]
[BlackElo "1712"]
[PlyCount "26"]
[EventDate "2025.04.13"]
[EventType "swiss"]
[EventCountry "ESP"]
[SourceTitle "playchess.com"]
[Source "ChessBase"]
[SourceQuality "1"]
[TimeControl "5400+30"]

1. e4 {[%emt 0:00:05]} c5 {[%emt 0:00:08]} 2. Nf3 {[%emt 0:00:06]} Nc6 {[%emt 0:00:08]} 3. c3 {[%emt 0:00:55]} d5 {[%emt 0:00:08]} 4. exd5 {[%emt 0:00:21]} Qxd5 {[%emt 0:00:07]} 5. d4 {[%emt 0:00:08]} Bf5 {[%emt 0:00:07]} 6. Na3 {[%emt 0:00:37]} e6 {[%emt 0:03:01]} 7. Nb5 {[%emt 0:10:46]} Rc8 {[%emt 0:05:41]} 8. Be3 {[%emt 0:02:00]} a6 {[%emt 1:25:10]} 9. c4 {[%emt 0:02:19]} Qd7 {[%emt 0:04:18]} 10. Nc3 {[%emt 0:01:29]} cxd4 {[%emt 0:00:43]} 11. Nxd4 {[%emt 0:03:48]} Bg6 {[%emt 1:18:27]} 12. Nxc6 {[%emt 0:02:52]} Qxc6 {[%emt 1:17:35]} 13. Qa4 {[%emt 0:00:26]} Nf6 {[%emt 0:02:58]} *

[Event "17th Memorial Lezcano Montalvo 2025"]
[Site "Gran Canaria"]
[Date "2025.04.19"]
[Round "8.56"]
[White "Fernandez De La Hoz A., Carlos"]
[Black "Jerez Baez, Alvaro"]
[Result "*"]
[Annotator "NA"]
[ECO "D94"]
[WhiteElo "1687"]
[BlackElo "1583"]
[PlyCount "33"]
[EventDate "2025.04.13"]
[EventType "swiss"]
[EventCountry "ESP"]
[SourceTitle "playchess.com"]
[Source "ChessBase"]
[SourceQuality "1"]
[TimeControl "5400+30"]

1. Nf3 {[%emt 0:00:03]} g6 {[%emt 0:00:09]} 2. e3 {[%emt 0:00:05]} Bg7 {[%emt 0:00:08]} 3. d4 {[%emt 0:00:04]} Nf6 {[%emt 0:00:32]} 4. c4 {[%emt 0:00:07]} O-O {[%emt 0:00:08]} 5. Nc3 {[%emt 0:00:03]} d5 {[%emt 0:00:59]} 6. h3 {[%emt 0:00:16]} c6 {[%emt 0:01:41]} 7. b3 {[%emt 0:00:12]} Re8 {[%emt 0:00:10]} 8. Bb2 {[%emt 0:00:07]} Nbd7 {[%emt 0:00:16]} 9. Be2 {[%emt 0:00:12]} a6 {[%emt 0:01:11]} 10. a4 {[%emt 0:00:56]} e5 {[%emt 0:00:52]} 11. dxe5 {[%emt 0:01:28]} Nxe5 {[%emt 0:00:04]} 12. Nxe5 {[%emt 0:01:36]} Rxe5 {[%emt 0:00:05]} 13. Qd2 {[%emt 0:06:06]} Re8 {[%emt 0:14:21]} 14. Rd1 {[%emt 0:05:18]} Be6 {[%emt 0:01:41]} 15. O-O {[%emt 0:02:45]} Qb6 {[%emt 0:02:45]} 16. Rb1 {[%emt 0:03:42]} Rad8 {[%emt 0:01:55]} 17. cxd5 {[%emt 0:05:19]} *